fUST/lending_fUST_20251216
["ID","MTS","AMOUNT","RATE_DAILY","PERIOD"]
[398568248,1765840239507,-150.0,0.00013049,2]
[398568249,1765840239516,-500.0,0.00013049,2]
[398568250,1765840239525,-150.0,0.00013049,2]
[398568251,1765840239534,-500.0,0.00013049,2]
[398568252,1765840239543,-636.0,0.00013054,2]
[398568253,1765840239552,-152.19917669,0.00013054,2]
[398568254,1765840239562,-250.0,0.00013061,2]
[398568255,1765840239571,-268.46,0.00013097,2]
[398568256,1765840239581,-302.3095124,0.00013151,2]
[398568257,1765840239591,-306.0,0.00013151,2]
[398568258,1765840239600,-1195.1311024,0.00013151,2]
[398568259,1765840239609,-1195.2572896,0.00013151,2]
[398568260,1765840239619,-500.0,0.00013186,2]
[398568261,1765840239628,-500.0,0.00013186,2]
[398568262,1765840239637,-150.0,0.00013186,2]
[398568263,1765840239646,-500.0,0.00013186,2]
[398568264,1765840239655,-267.77663753,0.00013186,2]
[398568265,1765840239664,-500.0,0.00013186,2]
[398568266,1765840239674,-500.0,0.00013273,2]
[398568267,1765840239683,-500.0,0.00013273,2]
[398568268,1765840239692,-500.0,0.00013273,2]
[398568269,1765840239701,-500.0,0.00013273,2]
[398568270,1765840239710,-500.0,0.00013273,2]
[398568271,1765840239719,-500.0,0.00013273,2]
[398568272,1765840239727,-502.79052635,0.00013273,2]
[398568273,1765840239737,-502.3110438,0.00013273,2]
[398568274,1765840239746,-500.0,0.00013273,2]
[398568275,1765840239754,-502.624729,0.00013273,2]
[398568276,1765840239763,-395.37586049,0.00013273,2]
[398568277,1765840239772,-500.0,0.00013273,2]
[398568278,1765840239782,-500.0,0.00013273,2]
[398568279,1765840239791,-463.99040411,0.00013273,2]
[398568280,1765840239799,-500.0,0.00013273,2]
[398568281,1765840239809,-500.0,0.00013273,2]
[398568282,1765840239818,-500.0,0.00013273,2]
[398568283,1765840239827,-500.0,0.00013273,2]
[398568284,1765840239836,-312.79147745,0.00013273,2]
[398568285,1765840239846,-500.0,0.00013273,2]
[398568286,1765840239855,-500.0,0.00013273,2]
[398568287,1765840239866,-500.0,0.00013273,2]
[398568288,1765840239875,-500.0,0.00013273,2]
[398568289,1765840239885,-500.0,0.00013273,2]
[398568290,1765840239894,-500.68398952,0.00013273,2]
[398568291,1765840239903,-500.0,0.00013273,2]
[398568292,1765840239913,-500.0,0.00013273,2]
[398568294,1765840239923,-500.0,0.00013273,2]
[398568296,1765840239933,-500.0,0.00013273,2]
[398568297,1765840239942,-500.0,0.00013273,2]
[398568299,1765840239952,-251.66101855,0.00013273,2]
[398568300,1765840239962,-500.0,0.00013273,2]
[398568301,1765840239971,-500.0,0.00013273,2]
[398568302,1765840239980,-351.8658195,0.00013273,2]
[398568303,1765840239990,-500.0,0.00013273,2]
[398568304,1765840239999,-500.0,0.00013273,2]
[398568305,1765840240009,-500.0,0.00013273,2]
[398568306,1765840240019,-492.27346408,0.00013273,2]
[398568307,1765840240028,-500.0,0.00013273,2]
[398568308,1765840240037,-500.0,0.00013273,2]
[398568309,1765840240047,-500.0,0.00013273,2]
[398568310,1765840240056,-500.0,0.00013273,2]
[398568311,1765840240065,-500.0,0.00013273,2]
[398568312,1765840240074,-500.0,0.00013273,2]
[398568313,1765840240084,-518.4802276,0.00013273,2]
[398568314,1765840240094,-500.0,0.00013273,2]
[398568315,1765840240103,-500.0,0.00013273,2]
[398568316,1765840240112,-291.1716005,0.00013273,2]
[398568317,1765840240121,-500.0,0.00013273,2]
[398568318,1765840240130,-500.0,0.00013273,2]
[398568319,1765840240139,-500.0,0.00013323,2]
[398568320,1765840240148,-500.0,0.00013323,2]
[398568321,1765840240157,-223.2158424,0.00013323,2]
[398568322,1765840240166,-500.0,0.00013323,2]
[398568323,1765840240175,-500.0,0.00013323,2]
[398568324,1765840240183,-823.0,0.00013361,2]
[398568325,1765840240193,-468.0,0.00013362,2]
[398568326,1765840240202,-1000.0,0.00013371,2]
[398568327,1765840240211,-160.0,0.00013392,2]
[398568328,1765840240220,-151.0,0.000134,2]
[398568329,1765840240229,-151.0,0.000134,2]
[398568330,1765840240238,-182.15940556,0.00013424,2]
[398568331,1765840240247,-298.36489375,0.0001346,2]
[398568332,1765840240256,-500.0,0.0001346,2]
[398568333,1765840240265,-500.0,0.0001346,2]
[398568334,1765840240274,-500.0,0.0001346,2]
[398568335,1765840240283,-713.97283296,0.00013528,2]
[398568336,1765840240292,-3449.14412057,0.00013528,2]
[398568337,1765840240301,-2472.46625095,0.00013594,2]
[398568338,1765840240311,-596.0,0.00013597,2]
[398568339,1765840240320,-500.0,0.00013597,2]
[398568340,1765840240330,-194.34988413,0.00013597,2]
[398568341,1765840240340,-3659.84176861,0.00013603,2]
[398568342,1765840240349,-300.0,0.00013673,2]
[398568343,1765840240358,-500.0,0.00013698,2]
[398568344,1765840240368,-500.0,0.00013698,2]
[398568345,1765840240377,-500.0,0.00013698,2]
[398568346,1765840240386,-183.82,0.00013698,2]
[398568347,1765840240395,-321.98144301,0.00013698,2]
[398568348,1765840240405,-367.61081322,0.00013698,2]
[398568349,1765840240416,-500.0,0.00013698,2]
[398568350,1765840240425,-500.0,0.00013698,2]
[398568351,1765840240435,-500.0,0.00013698,2]
[398568352,1765840240443,-500.0,0.00013698,2]
[398568353,1765840240453,-189.72877911,0.00013698,2]
[398568354,1765840240463,-341.5118024,0.00013698,2]
[398568355,1765840240472,-607.13209316,0.00013698,2]
[398568356,1765840240480,-948.64389556,0.00013698,2]
[398568357,1765840240490,-500.0,0.00013698,2]
[398568358,1765840240499,-500.0,0.00013698,2]
[398568359,1765840240508,-500.0,0.00013698,2]
[398568361,1765840240518,-500.0,0.00013698,2]
[398568362,1765840240527,-500.0,0.00013698,2]
[398568363,1765840240536,-500.0,0.00013698,2]
[398568364,1765840240545,-500.0,0.00013698,2]
[398568365,1765840240554,-275.7,0.00013698,2]
[398568366,1765840240563,-280.37912219,0.00013698,2]
[398568367,1765840240572,-500.91469286,0.00013698,2]
[398568368,1765840240581,-500.0,0.00013698,2]
[398568369,1765840240590,-500.0,0.00013698,2]
[398568370,1765840240599,-500.0,0.00013698,2]
[398568371,1765840240608,-500.0,0.00013698,2]
[398568372,1765840240618,-500.0,0.00013698,2]
[398568373,1765840240627,-500.0,0.00013698,2]
[398568374,1765840240637,-500.0,0.00013698,2]
[398568376,1765840240645,-500.0,0.00013698,2]
[398568378,1765840240654,-500.0,0.00013698,2]
[398568380,1765840240663,-500.0,0.00013698,2]
[398568382,1765840240672,-500.0,0.00013698,2]
[398568383,1765840240681,-500.0,0.00013698,2]
[398568385,1765840240691,-500.0,0.00013698,2]
[398568387,1765840240700,-500.0,0.00013698,2]
[398568389,1765840240709,-500.0,0.00013698,2]
[398568390,1765840240718,-500.0,0.00013698,2]
[398568392,1765840240727,-500.0,0.00013698,2]
[398568394,1765840240735,-500.0,0.00013698,2]
[398568396,1765840240744,-500.0,0.00013698,2]
[398568398,1765840240753,-500.0,0.00013698,2]
[398568400,1765840240763,-500.0,0.00013698,2]
[398568402,1765840240771,-500.0,0.00013698,2]
[398568404,1765840240782,-500.0,0.00013698,2]
[398568406,1765840240791,-500.0,0.00013698,2]
[398568408,1765840240800,-284.34871219,0.00013698,2]
[398568410,1765840240809,-687.78,0.00013698,2]
[398568412,1765840240818,-687.78,0.00013698,2]
[398568414,1765840240827,-687.78,0.00013698,2]
[398568415,1765840240836,-687.78,0.00013698,2]
[398568417,1765840240846,-687.78,0.00013698,2]
[398568419,1765840240855,-687.78,0.00013698,2]
[398568421,1765840240864,-687.78,0.00013698,2]
[398568424,1765840240873,-687.78,0.00013698,2]
[398568425,1765840240883,-687.78,0.00013698,2]
[398568427,1765840240893,-687.78,0.00013698,2]
[398568429,1765840240902,-687.78,0.00013698,2]
[398568431,1765840240912,-687.78,0.00013698,2]
[398568433,1765840240922,-687.78,0.00013698,2]
[398568435,1765840240931,-687.78,0.00013698,2]
[398568437,1765840240941,-687.78,0.00013698,2]
[398568439,1765840240950,-687.78,0.00013698,2]
[398568441,1765840240960,-687.78,0.00013698,2]
[398568443,1765840240970,-395.50615583,0.00013698,2]
[398568445,1765840240981,-2617.71,0.00013698,2]
[398568447,1765840240996,-2617.71,0.00013698,2]
[398568449,1765840241011,-2617.71,0.00013698,2]
[398568451,1765840241021,-2617.71,0.00013698,2]
[398568453,1765840241031,-2617.71,0.00013698,2]
[398568455,1765840241040,-2617.71,0.00013698,2]
[398568457,1765840241051,-2617.71,0.00013698,2]
[398568459,1765840241060,-2617.71,0.00013698,2]
[398568461,1765840241069,-2617.71,0.00013698,2]
[398568463,1765840241079,-2617.71,0.00013698,2]
[398568465,1765840241090,-12756.2412117,0.00013699,2]
[398568467,1765840241099,-1500.0,0.00013699,2]
[398568469,1765840241109,-1000.0,0.00013699,2]
[398568471,1765840241120,-500.0,0.00013699,2]
[398568473,1765840241129,-500.0,0.00013699,2]
[398568475,1765840241139,-377.49188408,0.00013699,2]
[398568477,1765840241148,-500.0,0.00013699,2]
[398568479,1765840241157,-500.0,0.00013699,2]
[398568481,1765840241166,-500.0,0.00013699,2]
[398568483,1765840241176,-500.0,0.00013699,2]
[398568485,1765840241186,-500.0,0.00013699,2]
[398568487,1765840241195,-500.93757198,0.00013699,2]
[398568489,1765840241204,-500.0,0.00013699,2]
[398568491,1765840241213,-304.03604161,0.00013699,2]
[398568493,1765840241222,-500.0,0.00013699,2]
[398568495,1765840241231,-502.1314859,0.00013699,2]
[398568497,1765840241241,-500.76311807,0.00013699,2]
[398568499,1765840241250,-261.89158732,0.00013699,2]
[398568501,1765840241259,-500.0,0.00013699,2]
[398568503,1765840241268,-500.0,0.00013699,2]
[398568505,1765840241277,-500.0,0.00013699,2]
[398568507,1765840241287,-500.0,0.00013699,2]
[398568509,1765840241297,-500.32590199,0.00013699,2]
[398568511,1765840241307,-500.0,0.00013699,2]
[398568513,1765840241316,-500.0,0.00013699,2]
[398568515,1765840241325,-500.0,0.00013699,2]
[398568517,1765840241335,-500.0,0.00013699,2]
[398568519,1765840241344,-500.0,0.00013699,2]
[398568521,1765840241353,-538.75729142,0.00013699,2]
[398568523,1765840241363,-500.0,0.00013699,2]
[398568525,1765840241372,-500.91943761,0.00013699,2]
[398568527,1765840241380,-500.0,0.00013699,2]
[398568529,1765840241390,-500.0,0.00013699,2]
[398568531,1765840241399,-500.0,0.00013699,2]
[398568533,1765840241408,-500.0,0.00013699,2]
[398568535,1765840241417,-307.93716731,0.00013699,2]
[398568537,1765840241426,-177.16277427,0.00013699,2]
[398568539,1765840241435,-500.0,0.00013699,2]
[398568541,1765840241444,-500.0,0.00013699,2]
[398568543,1765840241453,-503.11160904,0.00013699,2]
[398568545,1765840241462,-500.0,0.00013699,2]
[398568547,1765840241471,-500.0,0.00013699,2]
[398568549,1765840241480,-500.0,0.00013699,2]
[398568551,1765840241488,-500.0,0.00013699,2]
[398568553,1765840241497,-500.0,0.00013699,2]
[398568555,1765840241506,-500.0,0.00013699,2]
[398568557,1765840241516,-500.0,0.00013699,2]
[398568559,1765840241525,-451.84631389,0.00013699,2]
[398568561,1765840241534,-222.54598404,0.00013699,2]
[398568563,1765840241543,-500.0,0.00013699,2]
[398568565,1765840241552,-500.0,0.00013699,2]
[398568567,1765840241560,-500.70287375,0.00013699,2]
[398568569,1765840241569,-500.0,0.00013699,2]
[398568570,1765840241578,-500.0,0.00013699,2]
[398568572,1765840241587,-500.0,0.00013699,2]
[398568595,1765840241784,-307.04829859,0.00013699,2]
[398568597,1765840241794,-500.0,0.00013699,2]
[398568599,1765840241803,-500.0,0.00013699,2]
[398568601,1765840241812,-160.0,0.00013699,2]
[398568603,1765840241822,-1364.6811624,0.00013727,2]
[398568605,1765840241831,-500.0,0.00013734,2]
[398568607,1765840241840,-632.0,0.00013757,2]
[398568609,1765840241849,-2157.0,0.00013757,2]
[398568611,1765840241858,-1361.0,0.00013757,2]
[398568613,1765840241866,-360.33964109,0.00013758,2]
[398568615,1765840241875,-687.78,0.00013758,2]
[398568617,1765840241884,-2617.71,0.00013758,2]
[398568619,1765840241893,-16327.1011209,0.00013759,2]
[398568621,1765840241902,-415.0,0.00013759,2]
[398568623,1765840241911,-699.9753736,0.00013767,2]
[398568625,1765840241920,-161.0,0.000138,2]
[398568627,1765840241929,-151.0,0.000138,2]
[398568629,1765840241938,-151.0,0.000138,2]
[398568631,1765840241947,-2617.71,0.00013819,2]
[398568633,1765840241956,-687.78,0.0001382,2]
[398568635,1765840241965,-2617.71,0.0001382,2]
[398568637,1765840241974,-372.17119348,0.00013821,2]
[398568639,1765840241986,-1000.90033952,0.00013821,2]
[398568641,1765840241996,-1000.0,0.00013821,2]
[398568643,1765840242005,-502.54999681,0.00013821,2]
[398568645,1765840242014,-877.24806752,0.00013821,2]
[398568647,1765840242023,-1000.0,0.00013821,2]
[398568649,1765840242032,-1000.0,0.00013821,2]
[398568651,1765840242041,-1000.0,0.00013821,2]
[398568653,1765840242050,-538.00879965,0.00013821,2]
[398568655,1765840242059,-1000.0,0.00013821,2]
[398568657,1765840242068,-1000.0,0.00013821,2]
[398568659,1765840242078,-1000.0,0.00013821,2]
[398568661,1765840242087,-1000.0,0.00013821,2]
[398568663,1765840242095,-1000.0,0.00013821,2]
[398568665,1765840242104,-1000.0,0.00013821,2]
[398568667,1765840242113,-1000.0,0.00013821,2]
[398568668,1765840242122,-1097.33430556,0.00013821,2]
[398568670,1765840242131,-385.19426305,0.00013821,2]
[398568672,1765840242140,-602.9476922,0.00013821,2]
[398568674,1765840242149,-1000.0,0.00013821,2]
[398568676,1765840242158,-1000.0,0.00013821,2]
[398568678,1765840242167,-1000.0,0.00013821,2]
[398568680,1765840242176,-1000.0,0.00013821,2]
[398568682,1765840242185,-1000.0,0.00013821,2]
[398568684,1765840242194,-1000.0,0.00013821,2]
[398568686,1765840242204,-1000.0,0.00013821,2]
[398568688,1765840242213,-1000.0,0.00013821,2]
[398568690,1765840242222,-1000.0,0.00013821,2]
[398568692,1765840242231,-497.35510568,0.00013821,2]
[398568694,1765840242240,-1000.0,0.00013821,2]
[398568696,1765840242249,-1000.0,0.00013821,2]
[398568698,1765840242257,-1000.0,0.00013821,2]
[398568700,1765840242267,-1000.0,0.00013821,2]
[398568702,1765840242276,-1000.0,0.00013821,2]
[398568704,1765840242285,-1000.0,0.00013821,2]
[398568706,1765840242293,-1000.0,0.00013821,2]
[398568707,1765840242302,-500.0,0.00013871,2]
[398568709,1765840242311,-687.78,0.00013875,2]
[398568711,1765840242320,-687.78,0.00013875,2]
[398568713,1765840242329,-687.78,0.00013875,2]
[398568715,1765840242338,-687.78,0.00013875,2]
[398568717,1765840242348,-687.79538339,0.00013875,2]
[398568719,1765840242357,-489.94860415,0.00013888,2]
[398568721,1765840242366,-2617.71,0.00013999,2]
[398568723,1765840242375,-3755.0,0.00014,2]
[398568725,1765840242384,-500.0,0.00014008,2]
[398568727,1765840242393,-160.7485602,0.00014018,2]
[398568729,1765840242403,-405.8851744,0.0001404,2]
[398568731,1765840242412,-740.38982778,0.00014076,2]
[398568733,1765840242421,-574.39153428,0.00014145,2]
[398568735,1765840242430,-151.0,0.000142,2]
[398568737,1765840242439,-151.0,0.000142,2]
[398568739,1765840242448,-600.0,0.00014221,2]
[398568741,1765840242457,-2617.71,0.00014246,2]
[398568743,1765840242467,-500.83536199,0.00014247,2]
[398568745,1765840242476,-500.69482109,0.00014247,2]
[398568747,1765840242485,-500.0,0.00014247,2]
[398568749,1765840242493,-606.79027324,0.00014247,2]
[398568751,1765840242502,-503.22506054,0.00014247,2]
[398568753,1765840242511,-656.1355002,0.00014247,2]
[398568755,1765840242520,-1000.0,0.00014247,2]
[398568757,1765840242529,-500.60014771,0.00014247,2]
[398568759,1765840242537,-501.16158852,0.00014247,2]
[398568761,1765840242546,-501.45631529,0.00014247,2]
[398568762,1765840242555,-1000.0,0.00014247,2]
[398568764,1765840242564,-500.6630019,0.00014247,2]
[398568767,1765840242574,-1000.0,0.00014247,2]
[398568768,1765840242583,-501.51254917,0.00014247,2]
[398568770,1765840242592,-265.60192137,0.00014247,2]
[398568773,1765840242602,-316.97597193,0.00014247,2]
[398568775,1765840242612,-500.47204913,0.00014247,2]
[398568777,1765840242622,-500.65884371,0.00014247,2]
[398568778,1765840242631,-500.57475529,0.00014247,2]
[398568780,1765840242640,-501.27858377,0.00014247,2]
[398568782,1765840242648,-1000.82455271,0.00014247,2]
[398568784,1765840242658,-1000.0,0.00014247,2]
[398568786,1765840242667,-437.82947645,0.00014247,2]
[398568788,1765840242675,-501.40932182,0.00014247,2]
[398568790,1765840242684,-252.97416167,0.00014247,2]
[398568792,1765840242693,-1000.8317515,0.00014247,2]
[398568794,1765840242702,-502.46074144,0.00014247,2]
[398568796,1765840242711,-501.44852271,0.00014247,2]
[398568798,1765840242721,-500.71044251,0.00014247,2]
[398568800,1765840242730,-501.14339612,0.00014247,2]
[398568802,1765840242739,-509.74322775,0.00014247,2]
[398568806,1765840242749,-500.74154496,0.00014247,2]
[398568810,1765840242758,-1000.0,0.00014247,2]
[398568813,1765840242767,-837.2532025,0.00014247,2]
[398568815,1765840242776,-1000.0,0.00014247,2]
[398568817,1765840242785,-500.71818563,0.00014247,2]
[398568819,1765840242794,-501.23230413,0.00014247,2]
[398568821,1765840242803,-260.0,0.00014247,2]
[398568823,1765840242812,-2617.71,0.00014367,2]
[398568825,1765840242821,-1395.83281498,0.00014368,2]
[398568978,1765840244547,-250.0,0.0001024,2]
[398568979,1765840244556,-400.76259487,0.000127,2]
[398568980,1765840244567,-429.44505399,0.000127,2]
[398568981,1765840244578,-172.42235114,0.000127,2]
[398568982,1765840244587,-914.67621722,0.000128,2]
[398568983,1765840244598,-87.95378278,0.000128,2]
[398568984,1765840244607,-1002.63,0.000128,2]
[398568985,1765840244616,-1002.63,0.000129,2]
[398568986,1765840244625,-1221.87718502,0.00014368,2]
[398568987,1765840244634,-484.9214772,0.00014368,2]
[398569076,1765840245544,-317.9235118,0.00013,2]
[398569079,1765840245575,-684.7064882,0.00013,2]
[398569081,1765840245589,-1002.63,0.00013,2]
[398569083,1765840245604,-1002.63,0.000131,2]
[398569085,1765840245618,-1002.63,0.000131,2]
[398569087,1765840245633,-1002.63,0.000132,2]
[398569089,1765840245650,-1002.63,0.000133,2]
[398569091,1765840245669,-1002.63,0.000133,2]
[398569093,1765840245688,-1015.0785228,0.00014368,2]
[398569095,1765840245706,-466.92113262,0.00014368,2]
[398569162,1765840246325,-1002.63,0.000134,2]
[398569164,1765840246335,-1002.63,0.000135,2]
[398569166,1765840246345,-1002.63,0.000135,2]
[398569168,1765840246356,-1002.63,0.000136,2]
[398569171,1765840246367,-1002.63,0.000137,2]
[398569173,1765840246377,-1002.63,0.000137,2]
[398569174,1765840246388,-1002.63,0.000138,2]
[398569176,1765840246397,-1002.63,0.000138,2]
[398569178,1765840246406,-1033.07886738,0.00014368,2]
[398569180,1765840246415,-724.49943552,0.00014368,2]
[398569298,1765840247650,-948.78287777,0.000139,2]
[398569301,1765840247660,-53.84712223,0.000139,2]
[398569303,1765840247670,-306.85283777,0.00014368,2]
[398570254,1765840280731,150.0,7.361e-05,2]
[398570255,1765840281027,150.0,8.03e-05,2]
[398570256,1765840281454,150.0,8.699e-05,2]
[398570257,1765840281847,150.0,9.368e-05,2]
[398570259,1765840346489,150.0,7.321e-05,2]
[398570262,1765840553959,2498.9691555,9.044e-05,2]
[398570263,1765841082838,200.1379534,9.63e-05,2]
[398570273,1765841161665,-282.37457424,9.995e-05,2]
[398570274,1765841161695,-3104.69314842,9.996e-05,2]
[398570275,1765841188055,-300.0,9.995e-05,2]
[398570276,1765841188085,-3225.87455468,9.996e-05,2]
[398570277,1765841188187,-614.93376218,9.996e-05,2]
[398570278,1765841226163,-680.54313772,9.996e-05,2]
[398570291,1765841432708,-251.53461735,9.996e-05,2]
[398570292,1765841432720,-3188.83063315,9.996e-05,2]
[398570293,1765841432729,-560.0,9.996e-05,2]
[398570294,1765841432738,-300.0,9.999e-05,2]
[398570295,1765841432747,-3442.84606746,0.0001,2]
[398570296,1765841432756,-300.0,0.0001024,2]
[398570297,1765841432766,-300.0,0.0001024,2]
[398570298,1765841432775,-300.0,0.0001024,2]
[398570299,1765841432784,-300.0,0.0001024,2]
[398570300,1765841432794,-300.0,0.0001024,2]
[398570301,1765841432803,-300.0,0.0001024,2]
[398570302,1765841432812,-300.0,0.0001024,2]
[398570303,1765841432821,-300.0,0.0001024,2]
[398570304,1765841432830,-300.0,0.0001024,2]
[398570305,1765841432839,-300.0,0.0001024,2]
[398570306,1765841432849,-300.0,0.0001024,2]
[398570307,1765841432858,-300.0,0.0001024,2]
[398570308,1765841432867,-300.0,0.0001024,2]
[398570309,1765841432876,-300.0,0.0001024,2]
[398570310,1765841432886,-300.0,0.0001024,2]
[398570311,1765841432895,-600.0,0.0001024,2]
[398570312,1765841432904,-224.75713527,0.00010717,2]
[398570313,1765841432913,-500.0,0.00010849,2]
[398570314,1765841432922,-500.0,0.00010849,2]
[398570315,1765841432931,-500.0,0.00010849,2]
[398570316,1765841432940,-500.0,0.00010849,2]
[398570317,1765841432949,-500.0,0.00010849,2]
[398570318,1765841432958,-440.06616406,0.00010849,2]
[398570356,1765841438461,-59.93383594,0.00010849,2]
[398570357,1765841438470,-500.0,0.00010849,2]
[398570358,1765841438479,-500.0,0.00010849,2]
[398570359,1765841438488,-500.0,0.00010849,2]
[398570360,1765841438498,-500.0,0.00010849,2]
[398570361,1765841438507,-649.35217494,0.00010849,2]
[398570362,1765841438516,-500.0,0.00010849,2]
[398570363,1765841438525,-500.0,0.00010849,2]
[398570364,1765841438535,-500.0,0.00010849,2]
[398570365,1765841438544,-500.0,0.00010849,2]
[398570366,1765841438553,-500.0,0.00010849,2]
[398570367,1765841438562,-500.0,0.00010849,2]
[398570368,1765841438571,-500.0,0.00010849,2]
[398570369,1765841438580,-500.0,0.00010849,2]
[398570370,1765841438589,-500.0,0.00010849,2]
[398570372,1765841438599,-500.0,0.00010849,2]
[398570374,1765841438608,-500.0,0.00010849,2]
[398570375,1765841438617,-500.0,0.00010849,2]
[398570376,1765841438627,-500.0,0.00010849,2]
[398570377,1765841438635,-12891.4330932,0.0001085,2]
[398570378,1765841438673,-5794.32690679,0.0001085,2]
[398570379,1765841438683,-684.7229129,0.00010959,2]
[398570380,1765841438692,-999.0,0.00010959,2]
[398570381,1765841438701,-420.0,0.00010999,2]
[398570382,1765841438710,-551.40918717,0.00011216,2]
[398570383,1765841438719,-2157.0,0.00011217,2]
[398570384,1765841438728,-1361.0,0.00011217,2]
[398570385,1765841438737,-632.0,0.00011217,2]
[398570386,1765841438746,-415.0,0.00011217,2]
[398570387,1765841438755,-720.0,0.00011264,2]
[398570388,1765841438764,-574.12855637,0.00011383,2]
[398570389,1765841438773,-5686.34929658,0.00011383,2]
[398570390,1765841438783,-10000.0,0.000114,2]
[398570391,1765841438792,-500.0,0.00011643,2]
[398570392,1765841438801,-500.0,0.00011643,3]
[398570393,1765841438811,-500.0,0.00011643,4]
[398570394,1765841438820,-500.0,0.00011643,5]
[398570395,1765841438829,-500.0,0.00011643,6]
[398570396,1765841438839,-500.0,0.00011643,7]
[398570397,1765841438848,-500.0,0.00011643,8]
[398570398,1765841438857,-500.0,0.00011643,9]
[398570399,1765841439085,-500.0,0.00011643,10]
[398570400,1765841439095,-595.37131296,0.00011931,2]
[398570401,1765841439104,-333.2019976,0.00011995,2]
[398570402,1765841439113,-210.35,0.00012,2]
[398570403,1765841439122,-587.0,0.00012099,2]
[398570404,1765841439131,-210.35,0.000121,2]
[398570405,1765841439142,-210.35,0.000121,2]
[398570406,1765841439151,-500.0,0.00012199,11]
[398570407,1765841439160,-210.35,0.000122,2]
[398570408,1765841439169,-210.35,0.000123,2]
[398570409,1765841439178,-210.35,0.000123,2]
[398570410,1765841439187,-864.0,0.0001239,2]
[398570411,1765841439196,-210.35,0.000124,2]
[398570412,1765841439206,-210.35,0.000124,2]
[398570413,1765841439215,-617.40005154,0.00012479,2]
[398570414,1765841439224,-210.35,0.000125,2]
[398570415,1765841439233,-314.766,0.00012501,2]
[398570416,1765841439243,-210.35,0.000126,2]
[398570417,1765841439251,-210.35,0.000126,2]
[398570418,1765841439261,-244.07384564,0.00012612,2]
[398570419,1765841439270,-210.35,0.000127,2]
[398570420,1765841439280,-210.35,0.000128,2]
[398570421,1765841439289,-210.35,0.000128,2]
[398570422,1765841439299,-500.0,0.00012999,12]
[398570423,1765841439308,-245.24954358,0.00013,3]
[398570424,1765841439317,-640.24385345,0.00013027,2]
[398570425,1765841439326,-167.60926476,0.00013173,2]
[398570426,1765841439335,-250.0,0.00013208,2]
[398570427,1765841439344,-500.0,0.00013272,13]
[398570428,1765841439354,-500.0,0.00013273,2]
[398570429,1765841439363,-500.0,0.00013273,2]
[398570430,1765841439372,-500.0,0.00013273,2]
[398570431,1765841439381,-500.0,0.00013273,2]
[398570432,1765841439390,-502.26431381,0.00013273,2]
[398570433,1765841439399,-500.0,0.00013273,2]
[398570434,1765841439408,-500.0,0.00013273,2]
[398570435,1765841439417,-501.11122057,0.00013273,2]
[398570436,1765841439428,-500.0,0.00013273,2]
[398570437,1765841439437,-496.04052073,0.00013273,2]
[398570438,1765841439447,-500.0,0.00013273,2]
[398570439,1765841439455,-500.0,0.00013273,2]
[398570440,1765841439464,-500.0,0.00013273,2]
[398570441,1765841439474,-500.0,0.00013273,2]
[398570442,1765841439483,-500.0,0.00013273,2]
[398570443,1765841439493,-500.0,0.00013273,2]
[398570444,1765841439502,-500.0,0.00013273,2]